bitfinex/quotes_BTCUSD_20250224
["timestamp","ask_amount","ask_price","bid_price","bid_amount"]
[1740417784799,0.157667,95137.0,95136.0,0.081]
[1740417785815,0.157667,95137.0,95136.0,0.001]
[1740417786007,0.307667,95137.0,95136.0,0.001]
[1740417787043,0.307667,95137.0,95136.0,0.004]
[1740417787629,0.307667,95137.0,95111.0,0.01246915]
[1740417787630,0.15,95136.0,95118.0,0.0805]
[1740417787830,0.15,95136.0,95111.0,0.00222915]
[1740417787831,0.307697,95119.0,95114.0,0.0453]
[1740417788032,0.307708,95112.0,95111.0,0.00222915]
[1740417789522,0.308708,95112.0,95111.0,0.00322915]
[1740417789728,0.41035369,95112.0,95111.0,0.00222915]
[1740417790474,0.41035369,95112.0,95111.0,0.00322915]
[1740417790885,0.5399107,95112.0,95111.0,0.00222915]
[1740417791289,0.5399107,95112.0,95111.0,0.00322915]
[1740417791790,0.43726501,95112.0,95111.0,0.00322915]
[1740417791971,0.43726501,95112.0,95111.0,0.00222915]
[1740417792170,0.33561932,95112.0,95111.0,0.00222915]
[1740417792560,0.33461932,95112.0,95111.0,0.00222915]
[1740417792766,0.33561932,95112.0,95111.0,0.00222915]
[1740417792966,0.33461932,95112.0,95111.0,0.00222915]
[1740417793363,0.17891132,95112.0,95111.0,0.04742915]
[1740417793589,0.33661932,95112.0,95111.0,0.04742915]
[1740417793790,0.33461932,95112.0,95111.0,0.04742915]
[1740417793997,0.33561932,95112.0,95111.0,0.04742915]
[1740417794563,0.33461932,95112.0,95111.0,0.04742915]
[1740417794954,0.33461932,95112.0,95111.0,0.05042915]
[1740417795189,0.41013605,95112.0,95111.0,0.00522915]
[1740417795753,0.33461932,95112.0,95111.0,0.00522915]
[1740417796353,0.33461932,95112.0,95111.0,0.00222915]
[1740417796568,0.33561932,95112.0,95111.0,0.00222915]
[1740417796930,0.33461932,95112.0,95111.0,0.00222915]
[1740417797413,0.33661932,95112.0,95111.0,0.00222915]
[1740417797809,0.33461932,95112.0,95111.0,0.00222915]
[1740417797945,0.33561932,95112.0,95111.0,0.00222915]
[1740417798878,0.41123605,95112.0,95111.0,0.00222915]
[1740417799370,0.41023605,95112.0,95111.0,0.00222915]
[1740417799582,0.51288174,95112.0,95111.0,0.00222915]
[1740417799732,0.43726501,95112.0,95111.0,0.00422915]
[1740417800102,0.43726501,95112.0,95111.0,0.00222915]
[1740417800721,0.33461932,95112.0,95111.0,0.00222915]
[1740417802759,0.33661932,95112.0,95111.0,0.00222915]
[1740417803132,0.33461932,95112.0,95111.0,0.00222915]
[1740417803570,0.33561932,95112.0,95111.0,0.00222915]
[1740417803977,0.33461932,95112.0,95111.0,0.00222915]
[1740417804352,0.33661932,95112.0,95111.0,0.00222915]
[1740417804553,0.307735,95096.0,95095.0,0.051601]
[1740417804729,0.307735,95096.0,95095.0,0.00183025]
[1740417804933,0.41038069,95096.0,95095.0,0.00183025]
[1740417805133,0.51302638,95096.0,95095.0,0.00183025]
[1740417805759,0.41038069,95096.0,95095.0,0.00183025]
[1740417806475,0.41238069,95096.0,95095.0,0.00183025]
[1740417807917,0.41038069,95096.0,95095.0,0.00183025]
[1740417808115,0.41238069,95096.0,95095.0,0.00183025]
[1740417808927,0.42014573,95096.0,95095.0,0.00183025]
[1740417809127,0.52279142,95096.0,95095.0,0.00183025]
[1740417809328,0.52479142,95096.0,95095.0,0.00183025]
[1740417809939,0.154,95096.0,95095.0,0.00183025]
[1740417810148,0.004,95096.0,95095.0,0.07723025]
[1740417810775,0.002,95096.0,95095.0,0.07723025]
[1740417811088,0.02691132,95112.0,95096.0,0.046]
[1740417811455,0.00794499,95120.0,95096.0,0.046]
[1740417811608,0.157733,95097.0,95096.0,0.046]
[1740417813514,0.157733,95097.0,95096.0,0.047]
[1740417814661,0.157733,95097.0,95096.0,0.048]
[1740417814867,0.157733,95097.0,95096.0,0.047]
[1740417815317,0.15,95098.0,95096.0,0.048]
[1740417815528,0.00794499,95120.0,95096.0,0.046]
[1740417815736,0.158733,95097.0,95096.0,0.047]
[1740417816464,0.158733,95097.0,95096.0,0.048]
[1740417816869,0.158733,95097.0,95096.0,0.047]
[1740417817296,0.158733,95097.0,95096.0,0.048]
[1740417817701,0.157733,95097.0,95096.0,0.047]
[1740417817928,0.157733,95097.0,95096.0,0.048]
[1740417818679,0.157733,95097.0,95096.0,0.0497004]
[1740417819900,0.307733,95097.0,95096.0,0.0037004]
[1740417820748,0.307733,95097.0,95096.0,0.0027004]
[1740417821093,0.307733,95097.0,95096.0,0.0037004]
[1740417821304,0.4015973,95097.0,95096.0,0.0037004]
[1740417821487,0.50424299,95097.0,95096.0,0.0017004]
[1740417821724,0.50424299,95097.0,95096.0,0.0027004]
[1740417821926,0.50424299,95097.0,95096.0,0.0037004]
[1740417822164,0.41037869,95097.0,95096.0,0.0037004]
[1740417822356,0.307733,95097.0,95096.0,0.0027004]
[1740417822558,0.156,95097.0,95096.0,0.0471004]
[1740417822734,0.161,95097.0,95096.0,0.1247004]
[1740417822893,0.318733,95097.0,95096.0,0.1247004]
[1740417823116,0.312733,95097.0,95096.0,0.1247004]
[1740417823326,0.312733,95097.0,95096.0,0.1257004]
[1740417823930,0.307733,95097.0,95096.0,0.1257004]
[1740417824190,0.307733,95097.0,95096.0,0.1267004]
[1740417826378,0.230229,95135.0,95098.0,0.15773]
[1740417826619,0.210251,95125.0,95101.0,0.08392518]
[1740417826738,0.0210251,95124.0,95097.0,0.0831]
[1740417826937,0.15,95124.0,95097.0,0.0831]
[1740417827347,0.15773,95100.0,95097.0,0.0831]
[1740417827544,0.157732,95098.0,95097.0,0.0831]
[1740417828720,0.157732,95098.0,95097.0,0.0861]
[1740417829060,0.157732,95098.0,95097.0,0.0871]
[1740417829608,0.210296,95104.0,95097.0,0.0871]
[1740417829821,0.2103,95103.0,95097.0,0.0871]
[1740417830116,0.157732,95098.0,95097.0,0.0871]
[1740417830865,0.157732,95098.0,95097.0,0.0841]
[1740417831244,0.157732,95098.0,95097.0,0.0871]
[1740417831589,0.157732,95098.0,95097.0,0.0831]
[1740417831791,0.157732,95098.0,95097.0,0.0861]
[1740417832561,0.157732,95098.0,95097.0,0.0901]
[1740417833974,0.307732,95098.0,95097.0,0.007]
[1740417834352,0.41037769,95098.0,95097.0,0.007]
[1740417834524,0.41037769,95098.0,95097.0,0.004]
[1740417834725,0.307733,95097.0,95096.0,0.0017004]
[1740417834930,0.41037869,95097.0,95096.0,0.0017004]
[1740417835195,0.51302438,95097.0,95096.0,0.0017004]
[1740417836181,0.51702438,95097.0,95096.0,0.0017004]
[1740417837159,0.41437869,95097.0,95096.0,0.0017004]
[1740417837582,0.41937869,95097.0,95096.0,0.0017004]
[1740417837783,0.42437869,95097.0,95096.0,0.0017004]
[1740417837984,0.41937869,95097.0,95096.0,0.0017004]
[1740417838246,0.29956524,95096.0,95095.0,0.00183025]
[1740417838410,0.48376368,95096.0,95095.0,4e-05]
[1740417838966,0.40221093,95096.0,95095.0,4e-05]
[1740417840992,0.40921093,95096.0,95095.0,4e-05]
[1740417841375,0.40221093,95096.0,95095.0,4e-05]
[1740417841736,0.41121093,95096.0,95095.0,4e-05]
[1740417842021,0.40621093,95096.0,95095.0,4e-05]
[1740417842397,0.42855492,95096.0,95095.0,4e-05]
[1740417842597,0.40721093,95096.0,95095.0,4e-05]
[1740417842803,0.41121093,95096.0,95095.0,4e-05]
[1740417843420,0.307758,95082.0,95079.0,0.0769]
[1740417843647,0.307758,95082.0,95081.0,0.00183027]
[1740417847352,0.308758,95082.0,95081.0,0.00183027]
[1740417847558,0.001,95082.0,95081.0,0.00183027]
[1740417847756,0.157758,95082.0,95081.0,0.00183027]
[1740417850321,0.158758,95082.0,95081.0,0.00183027]
[1740417850931,0.157758,95082.0,95081.0,0.00183027]
[1740417855187,0.157773,95073.0,95072.0,0.04752771]
[1740417855992,0.15750583,95073.0,95072.0,0.04752771]
[1740417856327,0.1109,95117.0,95072.0,0.13145289]
[1740417856533,0.1654355,95104.0,95092.0,0.15774]
[1740417856738,0.00012865,95106.0,95085.0,0.0787]
[1740417856944,0.00012865,95106.0,95088.0,0.0787]
[1740417857562,0.21042065,95106.0,95088.0,0.0787]
[1740417857694,0.157741,95092.0,95088.0,0.0787]
[1740417857895,0.157735,95096.0,95088.0,0.236448]
[1740417858101,0.004,95098.0,95089.0,0.046]
[1740417858350,0.0008506,95096.0,95089.0,0.046]
[1740417858624,0.157739,95094.0,95089.0,0.046]
[1740417858829,0.157741,95093.0,95089.0,0.046]
[1740417859031,0.0008506,95096.0,95089.0,0.046]
[1740417859234,0.2111656,95096.0,95089.0,0.046]
[1740417859431,0.15774,95093.0,95089.0,0.046]
[1740417859959,0.157742,95092.0,95089.0,0.046]
[1740417860094,0.0008506,95096.0,95089.0,0.046]
[1740417860291,0.157745,95090.0,95089.0,0.05]
[1740417861144,0.157743,95091.0,95089.0,0.046]
[1740417861352,0.210321,95093.0,95089.0,0.046]
[1740417861552,0.001,95090.0,95089.0,0.053]
[1740417862003,0.001,95092.0,95089.0,0.05]
[1740417862447,0.001,95090.0,95089.0,0.053]
[1740417862648,0.001,95090.0,95089.0,0.39399169]
[1740417862828,0.001,95090.0,95089.0,0.23624569]
[1740417863463,0.001,95090.0,95089.0,0.23224569]
[1740417863678,0.2111646,95096.0,95089.0,0.22924569]
[1740417863894,0.001,95093.0,95090.0,0.10264569]
[1740417864034,0.157738,95095.0,95090.0,0.10264569]
[1740417864035,0.157739,95094.0,95090.0,0.10264569]
[1740417864448,0.0008506,95096.0,95090.0,0.10264569]
[1740417864663,0.157741,95093.0,95090.0,0.10264569]
[1740417865013,0.157738,95095.0,95090.0,0.10264569]
[1740417865158,0.0008506,95096.0,95090.0,0.10264569]
[1740417865377,0.157739,95094.0,95090.0,0.10264569]
[1740417865585,0.001,95094.0,95090.0,0.10464569]
[1740417866520,0.001,95093.0,95090.0,0.10664569]
[1740417866723,0.001,95093.0,95091.0,0.157742]
[1740417866921,0.001,95093.0,95090.0,0.10664569]
[1740417866922,0.001,95093.0,95090.0,0.26238869]
[1740417867087,0.0018506,95096.0,95090.0,0.26238869]
[1740417867290,0.0018506,95096.0,95090.0,0.10464569]
[1740417867515,0.001,95094.0,95090.0,0.10464569]
[1740417867918,0.002,95094.0,95090.0,0.10664569]
[1740417868130,0.002,95094.0,95091.0,0.157743]
[1740417868330,0.001,95094.0,95093.0,0.15774]
[1740417868566,0.001,95094.0,95093.0,0.43415172]
[1740417868990,0.0008506,95096.0,95095.0,0.157736]
[1740417869191,0.0008506,95096.0,95095.0,0.27492254]
[1740417870475,0.0008506,95096.0,95095.0,0.35632254]
[1740417871595,0.0018506,95096.0,95095.0,0.35832254]
[1740417871819,0.0018506,95096.0,95095.0,0.40542254]
[1740417873212,0.0028506,95096.0,95095.0,0.40742254]
[1740417873417,0.00012865,95106.0,95105.0,0.28432]
[1740417873683,0.00012865,95106.0,95105.0,0.72390654]
[1740417874063,0.00012865,95106.0,95105.0,0.87390654]
[1740417874675,0.0008504,95111.0,95110.0,0.45345285]
[1740417874848,0.0008502,95136.0,95135.0,0.15767]
[1740417875052,0.00097945,95136.0,95135.0,0.23384569]
[1740417875687,0.15864845,95136.0,95135.0,0.1312]
[1740417877184,0.00097945,95136.0,95135.0,0.1402]
[1740417877653,0.15864845,95136.0,95135.0,0.1362]
[1740417877858,0.15864845,95136.0,95135.0,0.1312]
[1740417878076,0.00097945,95136.0,95135.0,0.1312]
[1740417878239,0.15864845,95136.0,95135.0,0.1372]
[1740417878463,0.00097945,95136.0,95135.0,0.1412]
[1740417878823,0.15864845,95136.0,95135.0,0.01]
[1740417879783,0.15864845,95136.0,95135.0,0.006]
[1740417880011,0.15964845,95136.0,95135.0,0.012]
[1740417881013,0.21022,95139.0,95135.0,0.012]
[1740417881280,0.157669,95136.0,95135.0,0.012]
[1740417882407,0.157669,95136.0,95135.0,0.006]
[1740417882850,0.157669,95136.0,95135.0,0.011]
[1740417883268,0.157669,95136.0,95135.0,0.006]
[1740417883472,0.157684,95127.0,95119.0,0.0764]
[1740417883815,0.001,95136.0,95135.0,0.012]
[1740417883989,0.001,95136.0,95120.0,0.10264569]
[1740417884222,0.0008501,95141.0,95121.0,0.01454085]
[1740417884512,0.157669,95136.0,95135.0,0.004]
[1740417884639,0.157669,95136.0,95135.0,0.002]
[1740417884836,0.1585197,95136.0,95135.0,0.002]
[1740417885097,0.1585197,95136.0,95135.0,0.005]
[1740417885315,0.15,95135.0,95119.0,0.00012925]
[1740417885467,0.157695,95120.0,95119.0,0.00012925]
[1740417886705,0.157695,95120.0,95119.0,0.00112925]
[1740417887122,0.157695,95120.0,95119.0,0.00012925]
[1740417887503,0.157695,95120.0,95119.0,0.00112925]
[1740417889023,0.00804061,95133.0,95119.0,0.00112925]
[1740417889229,0.00804061,95133.0,95119.0,0.00012925]
[1740417889434,0.15,95124.0,95119.0,0.00012925]
[1740417889785,0.157694,95121.0,95119.0,0.00012925]
[1740417889985,0.157695,95120.0,95119.0,0.00012925]
[1740417891544,0.157695,95120.0,95119.0,0.00112925]
[1740417891747,0.3805156,95120.0,95119.0,0.00112925]
[1740417891950,0.307695,95120.0,95119.0,0.00112925]
[1740417892382,0.307695,95120.0,95119.0,0.00012925]
[1740417892740,0.307695,95120.0,95119.0,0.00112925]
[1740417893156,0.00802694,95130.0,95119.0,0.00012925]
[1740417893359,0.26329911,95143.0,95119.0,0.00012925]
[1740417893745,0.210234,95132.0,95119.0,0.00012925]
[1740417893922,0.210231,95133.0,95119.0,0.00012925]
[1740417894339,0.157692,95123.0,95119.0,0.00012925]
[1740417894515,0.210231,95133.0,95119.0,0.00012925]
[1740417894871,0.210234,95132.0,95119.0,0.00112925]
[1740417895047,0.210234,95132.0,95119.0,0.00012925]
[1740417895244,0.18970711,95310.0,95119.0,0.00012925]
[1740417895245,0.004,95133.0,95120.0,0.15024569]
[1740417895868,0.157679,95130.0,95120.0,0.15024569]
[1740417896441,0.004,95132.0,95120.0,0.15024569]
[1740417896649,0.004,95133.0,95121.0,0.01454085]
[1740417896854,0.004,95133.0,95123.0,0.15769]
[1740417897063,0.004,95133.0,95124.0,0.10264569]
[1740417897064,0.002,95133.0,95124.0,0.10264569]
[1740417897269,0.005,95133.0,95124.0,0.10264569]
[1740417897649,0.002,95133.0,95124.0,0.10264569]
[1740417898450,0.003,95133.0,95124.0,0.10264569]
[1740417899007,0.001,95133.0,95124.0,0.10264569]
[1740417899218,0.001,95132.0,95124.0,0.10264569]
[1740417899655,0.001,95133.0,95124.0,0.10264569]
[1740417900072,0.15768,95130.0,95124.0,0.10264569]
[1740417900363,0.001,95133.0,95124.0,0.10264569]
[1740417900517,0.0008493,95136.0,95124.0,0.10264569]
[1740417900719,0.001,95133.0,95124.0,0.10264569]
[1740417902542,0.0018493,95136.0,95124.0,0.10264569]
[1740417902738,0.210231,95134.0,95124.0,0.10264569]
[1740417903008,0.0018493,95136.0,95121.0,0.3224]
[1740417903211,0.157692,95122.0,95121.0,0.3224]
[1740417904471,0.157692,95122.0,95121.0,0.3244]
[1740417906278,0.157692,95122.0,95121.0,0.3224]
[1740417906491,0.157692,95122.0,95121.0,0.3254]
[1740417906743,0.157692,95122.0,95121.0,0.3294]
[1740417906993,0.157692,95122.0,95121.0,0.007]
[1740417907335,0.157692,95122.0,95119.0,0.00182785]
[1740417907336,0.157695,95120.0,95119.0,0.00182785]
[1740417907836,0.156055,95120.0,95119.0,0.00182785]
[1740417909771,0.156055,95120.0,95119.0,0.00482785]
[1740417909976,0.156055,95120.0,95119.0,0.00182785]
[1740417910195,0.156055,95120.0,95119.0,0.00582785]
[1740417910557,0.158055,95120.0,95119.0,0.00582785]
[1740417910791,0.158055,95120.0,95119.0,0.00182785]
[1740417910961,0.158055,95120.0,95119.0,0.00382785]
[1740417911137,0.308055,95120.0,95119.0,0.00382785]
[1740417912164,0.31577901,95120.0,95119.0,0.00382785]
[1740417912574,0.31377901,95120.0,95119.0,0.00182785]
[1740417912776,0.31577901,95120.0,95119.0,0.00182785]
[1740417912978,0.31777901,95120.0,95119.0,0.00182785]
[1740417913179,0.31577901,95120.0,95119.0,0.00182785]
[1740417913422,0.31377901,95120.0,95119.0,0.00182785]
[1740417913601,0.31677901,95120.0,95119.0,0.00182785]
[1740417913796,0.15,95119.0,95103.0,0.07902785]
[1740417914001,0.157722,95104.0,95103.0,0.07902785]
[1740417915856,0.18779139,95104.0,95103.0,0.08402785]
[1740417916092,0.18879139,95104.0,95103.0,0.08402785]
[1740417916211,0.18879139,95104.0,95103.0,0.08902785]
[1740417916412,0.18779139,95104.0,95103.0,0.08402785]
[1740417916612,0.18779139,95104.0,95103.0,0.07902785]
[1740417916832,0.18779139,95104.0,95103.0,0.08802785]
[1740417917269,0.18779139,95104.0,95103.0,0.08402785]
[1740417917490,0.18779139,95104.0,95103.0,0.08302785]
[1740417917738,0.18779139,95104.0,95103.0,0.004]
[1740417917739,0.3952616,95104.0,95103.0,0.004]
[1740417918096,0.15,95103.0,95080.0,0.0816]
[1740417918361,0.15776,95081.0,95080.0,0.00012865]
[1740417919550,0.15776,95081.0,95080.0,0.00512865]
[1740417919964,0.15776,95081.0,95080.0,0.00412865]
[1740417920209,0.15776,95081.0,95080.0,0.00012865]
[1740417920363,0.15776,95081.0,95080.0,0.00412865]
[1740417920533,0.15776,95081.0,95080.0,0.00812865]
[1740417921450,0.15776,95081.0,95080.0,0.00982765]
[1740417924559,0.30776,95081.0,95080.0,0.00982765]
[1740417925790,0.41040569,95081.0,95080.0,6.5e-07]
[1740417926202,0.41040569,95081.0,95080.0,0.00200065]
[1740417926377,0.41040569,95081.0,95080.0,6.5e-07]
[1740417926582,0.41040569,95081.0,95080.0,0.00300065]
[1740417926784,0.41040569,95081.0,95080.0,0.00400065]
[1740417926980,0.51305138,95081.0,95080.0,0.00300065]
[1740417927326,0.51505138,95081.0,95080.0,6.5e-07]
[1740417927958,0.30976,95081.0,95080.0,6.5e-07]
[1740417928365,0.157763,95079.0,95078.0,0.0753]
[1740417928771,0.157771,95074.0,95073.0,0.0017014]
[1740417929734,0.00011311,95081.0,95073.0,0.0017014]
[1740417930136,0.157761,95080.0,95074.0,0.0458]
[1740417930379,0.157767,95077.0,95074.0,0.0458]
[1740417930525,0.157764,95079.0,95074.0,0.0458]
[1740417930733,0.15777,95075.0,95074.0,0.0458]
[1740417931094,0.00011311,95081.0,95080.0,0.157761]
[1740417931301,0.00011311,95081.0,95080.0,0.33720669]
[1740417932142,0.00011311,95081.0,95080.0,0.40124754]
[1740417932649,0.00011311,95081.0,95080.0,0.72364754]
[1740417932934,0.0008493,95136.0,95080.0,0.72364754]
[1740417932935,0.0008495,95104.0,95103.0,0.287723]
[1740417933200,0.0008495,95104.0,95103.0,0.23264569]
[1740417934444,0.0008495,95104.0,95103.0,0.13]
[1740417936762,0.0008495,95104.0,95103.0,0.287723]
[1740417936963,0.0008495,95104.0,95103.0,0.39036869]
[1740417937439,0.0008495,95104.0,95103.0,0.72730954]
[1740417937847,0.0008495,95104.0,95103.0,0.56958654]
[1740417938253,0.0008495,95104.0,95103.0,0.57158654]
[1740417938407,0.1585715,95104.0,95103.0,0.4544]
[1740417938608,0.1585715,95104.0,95103.0,0.4524]
[1740417938810,0.1585715,95104.0,95094.0,0.0818]
[1740417938811,0.0008495,95104.0,95094.0,0.0818]
[1740417939018,0.3095715,95104.0,95103.0,0.002]
[1740417939426,0.15774,95093.0,95092.0,0.3224]
[1740417939623,0.30774,95093.0,95092.0,0.3224]
[1740417939966,0.157758,95082.0,95081.0,0.0454]
[1740417940673,0.15777,95075.0,95072.0,0.0809]
[1740417941102,0.18720815,95075.0,95072.0,0.0809]
[1740417941695,0.157768,95076.0,95072.0,0.0809]
[1740417941889,0.03133741,95082.0,95072.0,0.0809]
[1740417942086,0.24168341,95082.0,95072.0,0.0809]
[1740417942266,0.001,95082.0,95074.0,0.15947]
[1740417942479,0.03035818,95086.0,95075.0,0.10264569]
[1740417942686,0.47356611,95117.0,95075.0,0.10264569]
[1740417942882,0.47356611,95117.0,95077.0,0.0786]
[1740417943090,0.47356611,95117.0,95081.0,0.01454085]
[1740417943291,0.15,95093.0,95082.0,0.10264569]
[1740417943460,0.157743,95091.0,95082.0,0.10264569]
[1740417943657,0.15,95093.0,95082.0,0.10264569]
[1740417943658,0.157741,95092.0,95082.0,0.10264569]
[1740417943881,0.15,95093.0,95082.0,0.26040369]
[1740417944171,0.157741,95092.0,95082.0,0.10264569]
[1740417944596,0.001,95086.0,95082.0,0.10264569]
[1740417945196,0.15,95093.0,95082.0,0.10264569]
[1740417945518,0.15,95093.0,95082.0,0.10464569]
[1740417945678,0.210312,95097.0,95083.0,0.157756]
[1740417945679,0.307736,95096.0,95083.0,0.157756]
[1740417945880,0.307736,95096.0,95084.0,0.10264569]
[1740417946103,0.15,95096.0,95084.0,0.26039969]
[1740417946306,0.001,95086.0,95084.0,0.26039969]
[1740417946819,0.001,95086.0,95084.0,0.10264569]
[1740417947457,0.001,95086.0,95085.0,0.286453]
[1740417947672,0.0008497,95093.0,95092.0,0.157741]
[1740417947847,0.0008497,95093.0,95092.0,0.35762754]
[1740417948405,0.0008497,95093.0,95092.0,0.40272754]
[1740417949415,0.0018497,95093.0,95092.0,0.40472754]
[1740417949620,0.0018497,95093.0,95092.0,0.40972754]
[1740417949913,0.0018497,95093.0,95092.0,0.40472754]
[1740417950111,0.0028497,95093.0,95092.0,0.40972754]
[1740417950930,0.0008495,95104.0,95103.0,0.280523]
[1740417951060,0.0008495,95104.0,95103.0,1.25760954]
[1740417952100,0.0008495,95104.0,95103.0,1.26360954]
[1740417952274,0.0008493,95136.0,95126.0,0.1259]
[1740417952639,0.00096262,95136.0,95135.0,0.01454085]
[1740417952865,0.00096262,95136.0,95135.0,0.11718654]
[1740417953272,0.00096262,95136.0,95135.0,0.27485654]
[1740417953478,0.00096262,95136.0,95135.0,0.11718654]
[1740417953890,0.00096262,95136.0,95135.0,0.11818654]
[1740417954301,0.00096262,95136.0,95135.0,0.27585654]
[1740417955065,0.00096262,95136.0,95135.0,0.27785654]
[1740417956253,0.00096262,95136.0,95135.0,0.35785654]
[1740417956870,0.00096262,95136.0,95135.0,0.68025654]
[1740417957065,0.00096262,95136.0,95135.0,0.72525654]
[1740417957444,0.00096262,95136.0,95135.0,0.62217188]
[1740417957620,0.00096262,95136.0,95135.0,0.70771569]
[1740417957830,0.0300318,95172.0,95142.0,0.157659]
[1740417958025,0.15,95171.0,95142.0,0.38530469]
[1740417958633,0.15,95171.0,95142.0,0.22764569]
[1740417958839,0.210153,95169.0,95142.0,0.38530469]
[1740417959009,0.15763,95160.0,95142.0,0.38530469]
[1740417959206,0.157636,95156.0,95142.0,0.22764569]
[1740417959465,0.157641,95153.0,95142.0,0.24218654]
[1740417959755,0.157643,95152.0,95142.0,0.25186654]
[1740417959963,0.157643,95152.0,95142.0,0.41452554]
[1740417960194,0.21018,95157.0,95142.0,0.39998469]
[1740417960398,0.00085,95165.0,95142.0,0.39998469]
[1740417960575,0.00085,95165.0,95142.0,0.72738469]
[1740417960810,0.00085,95165.0,95164.0,0.236722]
[1740417961019,0.00128076,95165.0,95164.0,0.70986769]
[1740417962159,0.00228076,95165.0,95164.0,0.70986769]
[1740417962609,0.00328076,95165.0,95164.0,0.70986769]
[1740417962808,0.00328076,95165.0,95164.0,0.72440854]
[1740417963931,0.00128076,95165.0,95164.0,0.56678654]
[1740417964262,0.00128076,95165.0,95164.0,0.59377776]
[1740417964999,0.00128076,95165.0,95164.0,0.60345776]
[1740417965434,0.00128076,95165.0,95164.0,0.44251743]
[1740417965643,0.00128076,95165.0,95164.0,0.56973088]
[1740417965852,0.00128076,95165.0,95164.0,0.57273088]
[1740417966002,0.00128076,95165.0,95164.0,0.41510888]
[1740417966770,0.157609,95173.0,95164.0,0.29792234]
[1740417967028,0.15773715,95173.0,95164.0,0.29792234]
[1740417967237,0.00012915,95173.0,95165.0,0.01454085]
[1740417968796,0.157609,95172.0,95165.0,0.01454085]
[1740417969204,0.00012915,95173.0,95165.0,0.01454085]
[1740417969416,0.157614,95169.0,95165.0,0.01454085]
[1740417970114,0.210152,95170.0,95165.0,0.01454085]
[1740417970338,0.157619,95166.0,95165.0,0.01554085]
[1740417970509,0.157619,95166.0,95165.0,0.01654085]
[1740417970826,0.157617,95168.0,95165.0,0.01554085]
[1740417971045,0.00012915,95173.0,95165.0,0.01554085]
[1740417971245,0.00012915,95173.0,95172.0,0.21984985]
[1740417971559,0.00012915,95173.0,95172.0,0.60773788]
[1740417972163,0.00097835,95173.0,95172.0,0.68803788]
[1740417973301,0.00097835,95173.0,95172.0,0.69003788]
[1740417973507,0.00097835,95173.0,95172.0,0.68803788]
[1740417973715,0.00097835,95173.0,95172.0,1.24853788]
[1740417973891,0.00097835,95173.0,95172.0,1.41853788]
[1740417974032,0.00097835,95173.0,95172.0,1.65169788]
[1740417974450,0.00097835,95173.0,95172.0,1.65869788]
[1740417974810,0.00097835,95173.0,95172.0,1.66469788]
[1740417975055,0.00097835,95173.0,95172.0,1.65769788]
[1740417975257,0.00097835,95173.0,95172.0,1.65869788]
[1740417975464,0.00097835,95173.0,95172.0,1.67342945]
[1740417975623,0.00097835,95173.0,95172.0,1.64310945]
[1740417975993,0.00097835,95173.0,95172.0,1.32582045]
[1740417976193,0.00097835,95173.0,95172.0,1.33550045]
[1740417976382,0.00097835,95173.0,95172.0,1.35097116]
[1740417976588,0.00097835,95173.0,95172.0,1.52960449]
[1740417976998,0.00097835,95173.0,95172.0,1.51487292]
[1740417977202,0.00097835,95173.0,95172.0,1.52187292]
[1740417977610,0.00097835,95173.0,95172.0,1.51487292]
[1740417977828,0.00097835,95173.0,95172.0,1.49240221]
[1740417978049,0.00097835,95173.0,95172.0,1.49940221]
[1740417978448,0.00097835,95173.0,95172.0,1.49240221]
[1740417978659,0.00097835,95173.0,95172.0,1.50640221]
[1740417979460,0.0008496,95177.0,95176.0,0.24864285]
[1740417979656,0.0008496,95177.0,95176.0,0.35128854]
[1740417979864,0.0008496,95177.0,95176.0,0.39668854]
[1740417980850,0.0008496,95177.0,95176.0,0.40368854]
[1740417981387,0.0008496,95177.0,95176.0,0.41068854]
[1740417981537,0.0008496,95177.0,95176.0,0.25308654]
[1740417981737,0.0008496,95177.0,95176.0,0.42032854]
[1740417982287,0.0008496,95177.0,95176.0,0.41068854]
[1740417982503,0.0008496,95177.0,95176.0,0.42032854]
[1740417983343,0.0008496,95177.0,95176.0,0.59032854]
[1740417983560,0.0008496,95177.0,95176.0,0.61032854]
[1740417984434,0.0008496,95177.0,95176.0,0.57032854]
[1740417984646,0.0008496,95177.0,95176.0,0.59032854]
[1740417984853,0.0008496,95177.0,95176.0,0.61032854]
[1740417985060,0.0008496,95177.0,95176.0,0.60332854]
[1740417985234,0.0008496,95177.0,95176.0,0.61032854]
[1740417985764,0.0008516,95190.0,95187.0,0.42252485]
[1740417985968,0.0008516,95190.0,95187.0,0.52517054]
[1740417987504,0.0008516,95190.0,95187.0,0.53217054]
[1740417987866,0.0008516,95190.0,95187.0,0.51917054]
[1740417988251,0.0008516,95190.0,95187.0,0.21158654]
[1740417988460,0.0008516,95190.0,95187.0,0.22122654]
[1740417988699,0.0008516,95190.0,95187.0,0.13118654]
[1740417989212,0.0008516,95190.0,95187.0,0.14082654]
[1740417990605,0.0008516,95190.0,95187.0,0.16163997]
[1740417993355,0.0008516,95190.0,95187.0,0.05899428]
[1740417993714,0.0008516,95190.0,95187.0,0.05895428]
[1740417994698,0.0008516,95190.0,95187.0,0.04935428]
[1740417994859,0.0008516,95190.0,95187.0,0.05895428]
[1740417995661,0.1584336,95188.0,95187.0,0.014]
[1740417996879,0.1584336,95188.0,95187.0,0.007]
[1740417997103,0.1584336,95188.0,95187.0,0.013]
[1740417997480,0.1584336,95188.0,95187.0,0.006]
[1740417998021,0.1584336,95188.0,95187.0,0.008]
[1740417999705,0.1584336,95188.0,95187.0,0.002]
[1740417999909,0.21012,95184.0,95176.0,0.01454085]
[1740418000312,0.157601,95177.0,95176.0,0.01454085]
[1740418000954,0.18378139,95177.0,95176.0,0.01454085]
[1740418001486,0.02618039,95177.0,95176.0,0.01754085]
[1740418001663,0.0008516,95188.0,95176.0,0.01754085]
[1740418001796,0.0008516,95188.0,95178.0,0.210132]
[1740418002030,0.0008516,95188.0,95176.0,0.003]
[1740418002201,0.0008516,95188.0,95177.0,0.01454085]
[1740418002506,0.0008516,95188.0,95176.0,0.01454085]
[1740418002726,0.02706815,95188.0,95176.0,0.02154085]
[1740418002929,0.157588,95185.0,95176.0,0.01854085]
[1740418003100,0.0008516,95188.0,95187.0,0.157584]
[1740418003303,0.0008516,95188.0,95187.0,0.01454085]
[1740418004494,0.0008516,95188.0,95187.0,0.17212485]
[1740418004767,0.0008516,95188.0,95187.0,0.17412485]